Cogmind - Beta 12 @@@ ROGUE MODE // 2023.12.11 @ 09:16:26 Player: Leeman Result: Destroyed by S-10 Pest with Light Assault Rifle Performance ------------- Evolutions (0) 0 Regions Visited (4) 800 Robots Destroyed (40) 200 Value Destroyed (624) 624 Prototype IDs (26) 520 Alien Tech Used (0) 0 Bonus (300) 300 TOTAL SCORE: 2444 Bonus ------- Aligned with FarCom 300 Cogmind --------- Core Integrity 0/250 Matter 280/300 Energy 160/160 System Corruption 0% Temperature Warm (130) Movement Rolling (95) Ox1 Location -9/Mines Parts ------- > --- POWER (1) -------- Light Nuclear Core > --- PROPULSION (2) --- Wheel Wheel > --- UTILITY (2) ------ Large Storage Unit Signal Interpreter > --- WEAPON (2) ------- Medium Laser Assault Cannon > --- INVENTORY (15) --- Light Ion Engine Light Ion Engine Aluminum Leg Aluminum Leg Heat Sink Sensor Array 0b10 Alert Chip Hacking Suite Small Laser Beam Cannon Light Assault Rifle Grenade Launcher Rocket Launcher Mining Laser Peak State ------------ > --- POWER ------------ Light Nuclear Core > --- PROPULSION ------- Wheel Wheel > --- UTILITY ---------- Large Storage Unit Signal Interpreter > --- WEAPON ----------- Medium Laser Assault Cannon > --- INVENTORY -------- Light Ion Engine Light Ion Engine Aluminum Leg Aluminum Leg Heat Sink Sensor Array 0b10 Alert Chip Hacking Suite Small Laser Beam Cannon Light Assault Rifle Grenade Launcher Mining Laser [Rating: 13] Favorites ----------- Power Light Ion Engine Engine Light Ion Engine Power Core Light Nuclear Core Propulsion Aluminum Leg Leg Aluminum Leg Wheel Wheel Utility Signal Interpreter Device Heat Sink Storage Large Storage Unit Processor Signal Interpreter Weapon Medium Laser Energy Gun Medium Laser Energy Cannon Beam Cannon Ballistic Cannon Assault Cannon Launcher Grenade Launcher Build | -11 -10 -10 -10 -9 ------- Run | Jun Mat Min Exi Min Slots Evolved . | . . . . . Power . | . . . . . Propulsion . | . . . . . Utility . | . . . . . Weapon . | . . . . . Parts Attached 32 | 6 11 15 . . Power 5 | 1 1 3 . . Engine 4 | 1 1 2 . . Core 1 | . . 1 . . Reactor . | . . . . . Propulsion 7 | 2 1 4 . . Treads . | . . . . . Leg 5 | 2 1 2 . . Wheel 2 | . . 2 . . Hover . | . . . . . Flight . | . . . . . Utility 5 | 1 4 . . . Device 1 | . 1 . . . Storage 2 | 1 1 . . . Processor 2 | . 2 . . . Hackware . | . . . . . Protection . | . . . . . Artifact . | . . . . . Weapon 15 | 2 5 8 . . Energy Gun 10 | 2 3 5 . . Energy Cannon 1 | . . 1 . . Ballistic Gun . | . . . . . Ballistic Cannon 1 | . . 1 . . Launcher 3 | . 2 1 . . Special Weapon . | . . . . . Impact Weapon . | . . . . . Slashing Weapon . | . . . . . Piercing Weapon . | . . . . . Special Melee Weapon . | . . . . . Unidentified Prototypes 1 | . . 1 . . Parts Lost 10 | . 3 7 . . Power 3 | . 1 2 . . Propulsion 4 | . 1 3 . . Utility 1 | . 1 . . . Weapon 2 | . . 2 . . Highest Loss Streak 3 | . 2 3 . . To Critical Strikes . | . . . . . Average Slot Usage (%) 96 | . 98 89 100 100 Engine 8 | . 13 12 . . Core 5 | . . 1 14 14 Leg 13 | . 27 10 . . Wheel 11 | . . 8 28 28 Device 1 | . 3 . . . Storage 14 | . 14 14 14 14 Processor 12 | . 10 14 14 14 Energy Gun 21 | . 27 19 14 14 Ballistic Cannon 5 | . . 1 14 14 Launcher 1 | . . 5 . . Naked Turns . | . . . . . Heaviest Build 32 | 13 28 32 32 32 Greatest Support 20 | 20 20 20 20 20 Greatest Overweight (x) 9 | 2 2 9 1 1 Average Overweight (x) . | . . 1 1 1 Largest Inventory Capacity 15 | 8 15 15 15 15 Average Capacity 13 | 6 12 15 15 15 Most Carried 14 | 2 11 12 13 14 Average Carried 9 | 1 8 9 12 13 Final Capacity 15 | 8 15 15 15 15 Final Carried 14 | 2 11 12 13 14 Class Distribution -------------------- 92% | Mutant 7% | Scavenger-Mutant Dominant Class ---------------- Mutant | -10/Materials Mutant | -10/Mines Mutant | -10/Exiles Mutant | -9/Mines Resources | -11 -10 -10 -10 -9 ----------- Run | Jun Mat Min Exi Min Matter Collected 590 | 209 176 205 . . Remotely . | . . . . . Salvage Created 985 | . 654 316 . 15 Parts 75 | . 36 37 . 2 Haulers Intercepted . | . . . . . Recyclers Shooed 4 | . 4 . . . Parts Field Recycled . | . . . . . Retrieved Matter . | . . . . . Parts Self-Destructed . | . . . . . Prevented . | . . . . . Kills | -11 -10 -10 -10 -9 ------- Run | Jun Mat Min Exi Min Combat Hostiles Destroyed 23 | . 10 12 . 1 Guns 18 | . 9 8 . 1 Cannons 2 | . . 2 . . AOE 3 | . 1 2 . . Classes Destroyed 8 | . 8 . . . Worker 6 | . 4 2 . . Builder 4 | . 1 3 . . Tunneler 1 | . 1 . . . Recycler 2 | . 2 . . . Operator 1 | . 1 . . . Watcher 3 | . 3 . . . Swarmer 14 | . 3 10 . 1 Grunt 9 | . 7 2 . . Best Kill Streak 6 | . 6 5 . 1 Combat Bots Only 5 | . 3 5 . 1 Max Kills in Single Turn 2 | . 2 2 . 1 Gunslinging 1 | . 1 1 . . Exploded 1 | . 1 1 . . Melee . | . . . . . Uniques/NPCs Destroyed . | . . . . . Combat | -11 -10 -10 -10 -9 -------- Run | Jun Mat Min Exi Min Damage Taken 1132 | . 421 668 . 43 Core 256 | . 82 157 . 17 Absorbed by Shields . | . . . . . Core Remaining (%) 100 | 100 . . . . Volleys Fired 92 | . 59 29 . 4 Largest 2 | . 2 2 . 2 Hottest 116 | . 100 116 . 94 Shots Fired 179 | . 116 55 . 8 Gun 158 | . 109 45 . 4 Cannon 12 | . . 8 . 4 Launcher 9 | . 7 2 . . Special . | . . . . . Kinetic 4 | . . . . 4 Thermal 166 | . 109 53 . 4 Explosive 9 | . 7 2 . . Electromagnetic . | . . . . . Robot Hit Streak 12 | . 8 10 . 12 Robot Miss Streak 4 | . 3 4 . 2 Penetration Max . | . . . . . Secondary Targets 2 | . 1 1 . . Max Gunslinging Chain 1 | . 1 1 . . Shots Hit Robots 99 | . 65 31 . 3 Core Hits 56 | . 35 20 . 1 Critical Kills . | . . . . . Critical Parts Destroyed . | . . . . . Critical Strikes 4 | . 2 1 . 1 Burn 4 | . 2 1 . 1 Melee Attacks . | . . . . . Impact . | . . . . . Slashing . | . . . . . Piercing . | . . . . . Sneak Attacks . | . . . . . Combat Hostiles . | . . . . . Follow-up Attacks . | . . . . . Damage Inflicted 1663 | . 1018 596 . 49 Guns 1254 | . 821 409 . 24 Cannons 111 | . . 86 . 25 Explosions 298 | . 197 101 . . Melee . | . . . . . Ramming . | . . . . . Kinetic 25 | . . . . 25 Thermal 1340 | . 821 495 . 24 Explosive 298 | . 197 101 . . Electromagnetic . | . . . . . Impact . | . . . . . Slashing . | . . . . . Piercing . | . . . . . Highest Corruption . | . . . . . Average Corruption . | . . . . . Corruption Purged . | . . . . . Corruption Blocked . | . . . . . Overload Shots . | . . . . . Overflow Damage 2 | . 2 . . . Projectiles . | . . . . . Explosions 2 | . 2 . . . Melee . | . . . . . Knockbacks . | . . . . . Impact . | . . . . . Kinetic . | . . . . . Secondary . | . . . . . Self-Inflicted Damage 80 | . 40 40 . . Shots 3 | . 1 2 . . Rammed . | . . . . . Targets Rammed . | . . . . . Kicked . | . . . . . Crushed . | . . . . . Highest Temperature 448 | . 377 448 . 130 Average Temperature 121 | . 106 150 . 71 Received Heat Transfer 288 | . 219 69 . . Effects 2 | . . 2 . . Interference 2 | . . 2 . . Siege Activations . | . . . . . Robots Corrupted . | . . . . . Combat Hostiles . | . . . . . Parts Fried . | . . . . . Impact Corruptions . | . . . . . Robots Melted . | . . . . . Combat Hostiles . | . . . . . Parts Melted 4 | . 1 2 . 1 Heat Transferred 3985 | . 2590 1247 . 148 Parts Sabotaged . | . . . . . Parts Stolen . | . . . . . Parts Stripped . | . . . . . Power Chain Reactions . | . . . . . Missiles Intercepted . | . . . . . Alert | -11 -10 -10 -10 -9 ------- Run | Jun Mat Min Exi Min Peak Influence 196 | . 196 160 . 22 Initial . | . . . . . Average 34 | . 40 34 . . Maximum Alert Level . | . . . . . Low Security (%) 100 | 100 100 100 . 100 Level 1 . | . . . . . Level 2 . | . . . . . Level 3 . | . . . . . Level 4 . | . . . . . Level 5 . | . . . . . High Security . | . . . . . Max Security . | . . . . . Squads Dispatched 3 | . 2 1 . . Investigation 1 | . . 1 . . Extermination . | . . . . . Reinforcement 2 | . 2 . . . Assault . | . . . . . Garrison . | . . . . . Intercept . | . . . . . Searches Triggered . | . . . . . Construction Impeded . | . . . . . Haulers Reinforced . | . . . . . Active Scanning Responses . | . . . . . Cargo Convoy Interrupts . | . . . . . Stealth | -11 -10 -10 -10 -9 --------- Run | Jun Mat Min Exi Min Distress Signals 2 | . 2 . . . Communications Jammed . | . . . . . Distress Signals . | . . . . . Times Spotted 36 | . 16 16 . 4 Peak Tracking Total 5 | . 4 5 . 4 Tactical Retreats 1 | . . 1 . . Traps | -11 -10 -10 -10 -9 ------- Run | Jun Mat Min Exi Min Traps Triggered . | . . . . . Indirectly . | . . . . . Trap Hack Attempts . | . . . . . Triggered . | . . . . . Disarmed . | . . . . . Reprogrammed . | . . . . . Reused . | . . . . . Traps Extracted . | . . . . . Installed . | . . . . . Triggered . | . . . . . Machines | -11 -10 -10 -10 -9 ---------- Run | Jun Mat Min Exi Min Machines Disabled 3 | . 2 1 . . Max in Single Turn 1 | . 1 1 . . Machines Repaired . | . . . . . Machines Sabotaged . | . . . . . Overloaded Fab Kills . | . . . . . Hacking | -11 -10 -10 -10 -9 --------- Run | Jun Mat Min Exi Min Machines Accessed 10 | . 4 1 5 . Terminals 4 | . 4 . . . Fabricators . | . . . . . Repair Stations . | . . . . . Recycling Units . | . . . . . Scanalyzers . | . . . . . Garrison Access . | . . . . . Total Hacks 56 | . 5 1 50 . Successful 55 | . 4 1 50 . Failed 1 | . 1 . . . Catastrophic . | . . . . . Database Lockouts . | . . . . . Manual 4 | . . . 4 . Terminals 5 | . 5 . . . Fabricators . | . . . . . Repair Stations . | . . . . . Recycling Units . | . . . . . Scanalyzers . | . . . . . Garrison Access . | . . . . . Terminal Hacks 55 | . 4 1 50 . Record 49 | . . . 49 . Prototype ID Bank 1 | . 1 . . . Open Door 1 | . . 1 . . Locate Traps 2 | . 2 . . . Dispatch Records 1 | . 1 . . . EX-Prototype ID Bank 1 | . . . 1 . Fabricator Hacks . | . . . . . Repair Station Hacks . | . . . . . Recycling Unit Hacks . | . . . . . Scanalyzer . | . . . . . Garrison Access Hacks . | . . . . . Unauthorized Hacks . | . . . . . Terminals . | . . . . . Fabricators . | . . . . . Repair Stations . | . . . . . Recycling Units . | . . . . . Scanalyzers . | . . . . . Garrison Access . | . . . . . Data Cores Recovered . | . . . . . Used . | . . . . . Hacking Detections 2 | . 2 . . . Full Trace Events . | . . . . . Feedback Events . | . . . . . Feedback Blocked . | . . . . . Robot Schematics Acquired . | . . . . . Robots Built . | . . . . . Authchips . | . . . . . Time . | . . . . . Total Robot Build Rating . | . . . . . Part Schematics Acquired . | . . . . . Parts Built . | . . . . . Authchips . | . . . . . Time . | . . . . . Total Part Build Rating . | . . . . . Parts Repaired . | . . . . . Time . | . . . . . Parts Recycled . | . . . . . Recycled Matter . | . . . . . Retrieved Matter . | . . . . . Retrieved Components . | . . . . . Parts Scanalyzed . | . . . . . Part Schematics Acquired . | . . . . . Parts Damaged . | . . . . . Bothacking | -11 -10 -10 -10 -9 ------------ Run | Jun Mat Min Exi Min Used RIF Installer . | . . . . . Robots Hacked . | . . . . . Non-combat . | . . . . . Combat . | . . . . . Robot Hacks Applied . | . . . . . Relay Couplers Released . | . . . . . Fabnet Peak Effective % . | . . . . . Robots Rewired . | . . . . . Allies Hacked . | . . . . . Hacks Repelled . | . . . . . Allies | -11 -10 -10 -10 -9 -------- Run | Jun Mat Min Exi Min Total Allies . | . . . . . Largest Group . | . . . . . Highest-Rated Group . | . . . . . Highest-Rated Ally . | . . . . . Total Orders . | . . . . . Ally Attacks . | . . . . . Total Damage . | . . . . . Kills . | . . . . . Allies Corrupted . | . . . . . Allies Melted . | . . . . . Intel | -11 -10 -10 -10 -9 ------- Run | Jun Mat Min Exi Min Robot Analysis Total . | . . . . . Derelict Logs Recovered 1 | . . 1 . . Drone Launches . | . . . . . Drone Recoveries . | . . . . . Exploration | -11 -10 -10 -10 -9 ------------- Run | Jun Mat Min Exi Min Turns Passed 5549 | 86 2258 1291 1552 362 Spaces Moved 3705 | 47 1147 579 1629 303 Core 44 | 10 . 34 . . Treads . | . . . . . Legs 1450 | 37 1147 266 . . Wheels 2211 | . . 279 1629 303 Hover . | . . . . . Flight . | . . . . . Fastest Speed 50 | 50 120 95 95 95 Average Speed 130 | 114 163 186 95 95 Slowest Speed 500 | 150 260 500 95 95 Overloaded Moves . | . . . . . Propulsion Burnouts . | . . . . . Robots Hopped . | . . . . . Cave-ins Triggered . | . . . . . Exploration Rate (%) 63 | 4 99 66 95 54 Regions Visited 4 Branch Regions 3 Pre-discovered Areas 2 | . . 1 1 . Known Exits Taken 3 | . 1 1 1 . Unknown Exits Taken 1 | 1 . . . . Scrap Searched 1 | . . . . 1 Spaces Dug . | . . . . . Terrain Destroyed 40 | . 24 14 . 2 Melee . | . . . . . Projectile 2 | . . . . 2 AOE 38 | . 24 14 . . Terrain Rammed . | . . . . . Walls Destroyed . | . . . . . Machines Disabled . | . . . . . Actions | -11 -10 -10 -10 -9 --------- Run | Jun Mat Min Exi Min Total 4231 | 76 1415 736 1633 371 Wait 359 | 22 182 92 . 63 Move 3701 | 46 1146 578 1628 303 Hop . | . . . . . Pick Up 26 | 2 13 9 1 1 Fast Attach 12 | 6 2 4 . . Attach 10 | . 4 6 . . Detach 5 | . 2 3 . . Swap 11 | . 5 6 . . Drop 7 | . 2 5 . . Fire 92 | . 59 29 . 4 Melee . | . . . . . Ram . | . . . . . Kick . | . . . . . Crush . | . . . . . Escape Stasis . | . . . . . Rewire 8 | . . 4 4 . Trap . | . . . . . Miscellaneous . | . . . . . Route ------- -11/Junkyard -10/Materials (discovered 5 exits: *Mat x3 / *Min x2) -10/Mines (discovered 2 exits: *Mat / *Exi) -10/Exiles (discovered 2 exits: *Min x2) -9/Mines History --------- Turn | Location | Event 18 | -11/Junkyard | Discovered new exit (range 16) 87 | -11/Junkyard | Entered Materials 315 | -10/Materials | Build established: Mutant 376 | -10/Materials | Discovered new exit (range 9) 835 | -10/Materials | Discovered new exit (range 16) 862 | -10/Materials | Identified exit to Materials 979 | -10/Materials | Discovered new exit (range 6) 987 | -10/Materials | Identified exit to Mines 1061 | -10/Materials | Discovered exit to Mines (range 16) 1809 | -10/Materials | Discovered exit to Materials (range 7) 2345 | -10/Materials | Entered Mines 2415 | -10/Mines | Learned location of Zion (-7) 2476 | -10/Mines | Discovered exit to Materials (range 12) 2523 | -10/Mines | Assembled infested the area 2543 | -10/Mines | Core integrity fell below 50% 2577 | -10/Mines | Lost 3 parts (1p2n) 3005 | -10/Mines | Discovered new exit (range 5) 3013 | -10/Mines | Identified exit to Exiles 3451 | -10/Mines | Core integrity fell below 20% 3531 | -10/Mines | Met a Derelict shopkeep closing up shop 3636 | -10/Mines | Entered Exiles 3649 | -10/Exiles | Discovered new exit (range 15) 3661 | -10/Exiles | Identified exit to Mines 3681 | -10/Exiles | Met 8R-AWN 3696 | -10/Exiles | Met EX-HEX 3741 | -10/Exiles | Met EX-DEC 3882 | -10/Exiles | Visited The Gauntlet 4099 | -10/Exiles | Discovered exit to Mines (range 14) 4171 | -10/Exiles | Met EX-BIN 4249 | -10/Exiles | Aligned with FarCom system 4250 | -10/Exiles | Given EX-Vault access code 5092 | -10/Exiles | Opened EX-Vault 5100 | -10/Exiles | Found 0b10 Alert Chip 5122 | -10/Exiles | Warned to stay clear of 0b10 Research branches 5188 | -10/Exiles | Left Exiles lab with 0b10 Alert Chip 5188 | -10/Exiles | Entered Mines 5195 | -9/Mines | Received a Rocket Launcher from a helpful Derelict 5550 | -9/Mines | Destroyed by S-10 Pest with Light Assault Rifle Last Messages --------------- Done." 44-SN6(g): "Need a small hole in the wall? Leave that to the mining laser wimps, I say!" 44-SN6(g): "Would you like a rocket launcher? I know I would if I were you, so I'm going to lend you mine." 44-SN6(g) slips back into the shadows. Acquired Rocket Launcher. Searching scrap... Found Hover Unit. Found Beam Rifle. Found Imp. Hover Unit. Found 16 Matter. T-07 Excavator is excavating. K-01 Serf cleans the Core Extractor. K-01 Serf collects debris. T-07 Excavator is excavating. Flight Unit melted. S-10 Pest destroyed. S-10 Pest suffers critical hit (Burn). U-05 Engineer builds a Wall. Map ----- +----------------------------------------------------+ | ??????????????????????????????????????? | | ??????????????????????????????????????? | | ??????????????????????????????????????? | | ????????????????????????????#?????????? | | ??????????????????????????? #?????????? | | ????????????????????????? ?????????? | | ???????????????????????? ??????????? | | ???????###????????????? ????????????? | | ??????## ##????????? #?????????????? | | ?????## ##??????? #??????????????? | | ????## ####### #???????????????? | | ????# """ #????????????????? | | ????# """ ##???????????????? | | ????# """ ###### ##??????????????? | | ????# ##??????? ##?????????????? | | ????# #??????? ##????????????? | | ???## ##????s?? ?????????????? | | ??## ##??????? ??????????????? | | ??# ##???????? ???????????????? | | ??# ##???????? ????????????????? | | ??## ##???????? #?????????????????? | | ???# #??????? #??????????????????? | | ???## ##????? #???????????????????? | | ????## ##???# #????????????????????? | | ?????# #####%#####????????????????? | | ?????## @su #????????????????? | | ??????# ######## #????????????????? | | ??????# #??##?????????????????????? | | ??????## ##?????????????????????????? | | ???????# ##?????????s??ss????????????? | | ???????# #???????????????????????????? | | ???????# #???????????????????????????? | | ???????# #???????????????????????????? | | ???????# #???????????????????????????? | | ???????# #???????????????????????????? | | ???????# #???????????????????????????? | | ???????# #???????????????????????????? | | ?????### #####?#####?????????????????? | | ????## ### ########??????##### | | ????# ???????? # | | ????# ##?????????????# # | | ????## ##??????????????# # | | ?????####### ## #???????????????# # | | ???????????## ### #???????????????# | | ????????????#####?# #??????????#????### | | ??????????????????# #??????????# #????? | | ??????????????????# ##?????????# #????? | | ??????????????????# #?????????# #????? | | ??????????????????## #????????## ##???? | | ???????????????????# #???????## ##??? | +----------------------------------------------------+ Best States ------------- Heat Dissipation 35 Energy Generation 14 Energy Capacity 250 Matter Stores 300 Matter Capacity 300 Sight Range 18 Terrain Scan Density 10 Evasion (%) 55 Item Schematics ----------------- None Robot Schematics ------------------ None Fabricated ------------ Nothing Alien Tech Used ----------------- None Achievements -------------- Let's See Who's Tougher Tourist Challenges ------------ None Game ------ Seed DisposableTrackerArchive Manual? 0 Play Time 01:09:06 Cumulative 5.7 hours Start 2023.12.10 @ 20:54:02 End 2023.12.11 @ 09:16:26 Sessions 3 Manual Loads 0 Difficulty Rogue Special Mode None Game No. 7 Rogue 7 Adventurer 0 Explorer 0 Win Type - Total 0 Types 0/0/0/0/0/0/0/0/0 Lore% 11 Gallery% 7 Achievement% 8 Wizard Run 0 Options --------- ASCII 0 Keyboard 0 Movement Numpad Keybinds 0 Fullscreen 1 Font 18/SmallcapsGlow Map View 76x50 Tactical HUD 0 Map Filters NONE Filters NONE Steam 1 RUN: 49f3d518-d70a-41d6-83b8-d8d3d9a23cb0